[Event "Czech Youth U12 Boys 2024"]
[Site "Kouty nad Desnou"]
[Date "2024.03.16"]
[Round "9.10"]
[White "Zvolanek, Vojtech"]
[Black "Krisica, Lukas"]
[Result "0-1"]
[ECO "B42"]
[WhiteElo "1411"]
[BlackElo "1531"]
[Annotator "NA RC"]
[PlyCount "60"]
[EventDate "2024.03.10"]
[EventType "swiss"]
[EventCountry "CZE"]
[SourceTitle "playchess.com"]
[Source "ChessBase"]
[SourceQuality "1"]
[TimeControl "40/5400+30:1800+30"]

1. e4 {[%emt 0:00:14]} c5 {[%emt 0:01:07]} 2. Nf3 {[%emt 0:00:46]} e6 {[%emt 0:01:21]} 3. d4 {[%emt 0:00:19]} cxd4 {[%emt 0:01:26]} 4. Nxd4 {[%emt 0:01:07]} a6 {[%emt 0:01:30]} 5. Bd3 {[%emt 0:01:55]} d6 {[%emt 0:03:48]} 6. O-O {[%emt 0:01:21]} Nd7 {[%emt 0:01:10]} 7. c4 {[%emt 0:02:29]} Ngf6 {[%emt 0:04:07]} 8. b3 {[%emt 0:03:07]} b6 {[%emt 0:00:59]} 9. Bb2 {[%emt 0:01:40]} Bb7 {[%emt 0:01:46]} 10. Qe2 {[%emt 0:02:00]} Be7 {[%emt 0:05:20]} 11. Nc3 {[%emt 0:01:43]} O-O {[%emt 0:03:37]} 12. Rae1 {[%emt 0:02:07]} Rc8 {[%emt 0:01:59]} 13. f4 {[%emt 0:07:23]} Qc7 {[%emt 0:01:37]} 14. Kh1 {[%emt 0:02:06]} Rfd8 {[%emt 0:07:01]} 15. Nb1 {[%emt 0:10:54]} Nc5 {[%emt 0:02:10]} 16. e5 {[%emt 0:13:00]} Nxd3 {[%emt 0:02:09]} 17. Qxd3 {[%emt 0:00:48]} dxe5 {[%emt 0:02:07]} 18. fxe5 {[%emt 0:01:04]} Nd7 {[%emt 0:04:20]} 19. Qg3 {[%emt 0:10:59]} Nf8 {[%emt 0:03:31]} 20. Nf3 {[%emt 0:04:13]} Ng6 {[%emt 0:03:34]} 21. Ng5 {[%emt 0:05:06]} Rf8 {[%emt 0:00:56]} 22. Nd2 {[%emt 0:01:12]} Qc6 {[%emt 0:01:45]} 23. Ndf3 {[%emt 0:02:57]} Rcd8 {[%emt 0:06:34]} 24. Re2 {[%emt 0:03:03]} Rd3 {[%emt 0:01:59]} 25. Qg4 {[%emt 0:06:28]} Rfd8 {[%emt 0:19:36]} 26. Ref2 {[%emt 0:04:10]} Bxg5 27. Qxg5 {[%emt 0:03:23]} Rd1 {[%emt 0:15:41]} 28. Qe3 {[%emt 0:04:23]} R1d3 {[%emt 0:02:17]} 29. Qe2 {[%emt 0:03:19]} Nf4 {[%emt 0:00:48]} 30. Qc2 {[%emt 0:01:20]} h6 {[%emt 0:00:24]} 0-1

[Event "Czech Youth U12 Boys 2024"]
[Site "Kouty nad Desnou"]
[Date "2024.03.16"]
[Round "9.11"]
[White "Malek, Daniel"]
[Black "Broz, Pavel"]
[Result "1-0"]
[ECO "C57"]
[WhiteElo "2278"]
[BlackElo "1911"]
[Annotator "TA"]
[PlyCount "75"]
[EventDate "2024.03.10"]
[EventType "swiss"]
[EventCountry "CZE"]
[SourceTitle "playchess.com"]
[Source "ChessBase"]
[SourceQuality "1"]
[TimeControl "40/5400+30:1800+30"]

{[%evp 9,75,18,57,-6,185,102,153,145,137,150,130,77,148,140,147,148,144,147,154,150,150,143,156,143,167,157,222,232,264,273,359,350,321,289,322,231,233,203,207,207,275,275,392,394,380,258,238,229,29981,29982,29976,2211,2178,1954,29990,29991,29991,29988,29989,29990,29991,29992,29992,29993,29997,29995,29995,29996]} 1. e4 {[%emt 0:00:06]} e5 {[%emt 0:00:47]} 2. Nf3 {[%emt 0:00:08]} Nc6 {[%emt 0:01:11]} 3. Bc4 {[%emt 0:00:07]} Nf6 {[%emt 0:01:02]} 4. Ng5 {[%emt 0:00:15]} d5 {[%emt 0:02:07]} 5. exd5 {[%emt 0:00:27]} b5 {[%emt 0:03:36]} 6. Bb3 {[%emt 0:01:58]} ({White should play} 6. Bf1 $14) 6... Nxd5 $2 {[%emt 0:05:51]} (6... Nd4 $11 {and Black is okay.}) 7. Qf3 {[%emt 0:02:12]} (7. Nxf7 $1 $18 Kxf7 8. Qf3+ Ke6 9. Nc3) 7... Be6 {[%emt 0:02:40]} (7... Qxg5 $142 8. Bxd5 Nd4 9. Qxf7+ (9. Bxf7+ Ke7 $11) 9... Kd8) 8. Nxe6 $16 {[%emt 0:01:20] White is clearly better.} fxe6 {[%emt 0:02:16]} 9. Nc3 {[%emt 0:03:25][%cal Rc3d5]} Nd4 {[%emt 0:05:26]} 10. Qe4 {[%emt 0:05:43]} ({White should try} 10. Qh5+ g6 11. Qxe5) 10... Nxc3 {[%emt 0:03:42]} (10... c6 $142) 11. dxc3 {[%emt 0:01:48]} Nxb3 {[%emt 0:00:20]} 12. Qc6+ {[%emt 0:01:07]} (12. cxb3 Qd5 13. Qg4 Bc5 $16) 12... Kf7 {[%emt 0:00:24]} 13. axb3 {[%emt 0:01:31][%cal Oe1g1]} Qd5 {[%emt 0:08:44]} 14. Qxc7+ {[%emt 0:01:33]} Be7 {[%emt 0:03:28] [#] Hoping for ...Rac8.} 15. O-O {[%emt 0:02:40][%cal Oc1g5]} (15. Rxa7 $2 Qe4+ (15... Rxa7 16. Qxa7 Ra8 17. Qe3 $17) 16. Be3 Rxa7 17. Qxa7 Qxg2 $19) 15... Rhc8 {[%emt 0:01:15]} 16. Qa5 {[%emt 0:00:55]} b4 {[%emt 0:02:49]} 17. c4 {[%emt 0:04:22]} (17. cxb4 $6 Rxc2 18. Qa6 Qxb3 $14) 17... Qxa5 {[%emt 0:02:07]} (17... Qe4 $16 18. Bd2 Qxc2) 18. Rxa5 $18 {[%emt 0:00:14]} Rc5 {[%emt 0:00:17]} 19. Ra6 {[%emt 0:01:03]} g5 {[%emt 0:03:40][%cal Bg7g5,Bg5g4][%mdl 32]} 20. Be3 {[%emt 0:01:36]} Rc7 {[%emt 0:01:19]} 21. g3 {[%emt 0:01:27][%cal Bg2g3,Bg3f4,Bf4f5,Bf5f6][%mdl 32]} h5 {[%emt 0:01:41]} 22. f4 {[%emt 0:01:30]} exf4 {[%emt 0:00:44]} 23. gxf4 {[%emt 0:01:20]} g4 {[%emt 0:03:35]} 24. f5 {[%emt 0:01:02]} e5 {[%emt 0:00:33]} 25. Rh6 {[%emt 0:00:47]} h4 {[%emt 0:02:52]} (25... Rcc8 {was necessary.} 26. Kg2 (26. Rxh5 Rh8 $18) 26... Rh8) 26. f6 {[%emt 0:00:51]} Bd6 {[%emt 0:00:55]} 27. c5 {[%emt 0:02:17]} Bxc5 {[%emt 0:00:38]} 28. Rh7+ {[%emt 0:00:32]} Kf8 $2 {[%emt 0:00:28]} (28... Ke6 $18 29. Rxc7 Bxe3+ 30. Kh1 Bf4) 29. Bxc5+ {[%emt 0:00:36]} Rxc5 {[%emt 0:00:20] KRR-KRR} 30. Rh8+ {[%emt 0:00:07]} ({Less strong is} 30. Rxh4 Rac8 31. f7 (31. Rxg4 R8c7 $18) 31... Ke7 32. Rxg4 Rxc2 33. Rxb4 R2c7 $18) (30. Rd1 $142 e4 31. Rdd7 (31. Rxh4 Kf7 $16) 31... Rg5 32. f7 (32. Rxa7 Rxa7 33. Rxa7 Rd5 $11) (32. Rxh4 Kg8 $18) 32... Rg8 33. fxg8=N (33. fxg8=R+ Kxg8 34. Rdg7+ Kf8 35. Rxg4 Rd8 36. Rh8+ Ke7 37. Rxe4+ Kf6 38. Rxd8 Kf5) 33... Kxg8 34. Rdg7+ (34. Rxa7 Rd8 $18) (34. Rxh4 g3 $18) 34... Kf8 35. Rxg4) 30... Kf7 {[%emt 0:00:34]} 31. Rxa8 {[%emt 0:00:17] Threatening mate with Rh8.} Rxc2 {[%emt 0:00:43]} 32. Rxa7+ {[%emt 0:00:27] White mates.} Kf8 {[%emt 0:01:06]} 33. Rf2 {[%emt 0:00:54]} Rc1+ {[%emt 0:00:29] [#]} 34. Kg2 $1 {[%emt 0:00:07]} h3+ {[%emt 0:00:24]} 35. Kg3 {[%emt 0:00:09]} Rg1+ {[%emt 0:00:07]} 36. Kh4 {[%emt 0:00:31]} e4 {[%emt 0:00:07][%cal Be5e4,Be4e3][%mdl 32]} 37. f7 {[%emt 0:00:50]} e3 {[%emt 0:00:20]} 38. Ra8+ {[%emt 0:00:22] Weighted Error Value: White=0.22 (precise) /Black=0.66.  Loses game:     	---       	Black=1      Mistake:       	White=2     	Black=5      Inaccurate:     	White=1     	Black=2      OK:         	White=12    	Black=10     Best:        	White=3     	Black=1} 1-0